fUST/lending_fUST_20240820
["ID","MTS","AMOUNT","RATE_DAILY","PERIOD"]
[335311162,1724099448021,-500.0,0.00016712,2]
[335311163,1724099448031,-505.86050582,0.00016712,2]
[335311164,1724099448041,-500.0,0.00016712,2]
[335311165,1724099448050,-944.49,0.00016712,2]
[335311166,1724099448058,-500.0,0.00016712,2]
[335311167,1724099448068,-500.0,0.00016712,2]
[335311168,1724099448079,-500.0,0.00016712,2]
[335311169,1724099448089,-500.0,0.00016712,2]
[335311170,1724099448099,-500.0,0.00016712,2]
[335311171,1724099448111,-500.0,0.00016712,2]
[335311172,1724099448121,-216.65088,0.00016712,2]
[335311173,1724099448130,-500.0,0.00016712,2]
[335311174,1724099448140,-500.0,0.00016712,2]
[335311175,1724099448151,-500.0,0.00016712,2]
[335311176,1724099448160,-500.0,0.00016712,2]
[335311177,1724099448170,-500.0,0.00016712,2]
[335311178,1724099448180,-500.0,0.00016712,2]
[335311179,1724099448189,-500.0,0.00016712,2]
[335311180,1724099448199,-248.255568,0.00016712,2]
[335311181,1724099448209,-618.38065273,0.00016712,2]
[335311182,1724099448219,-500.0,0.00016712,2]
[335311183,1724099448233,-500.0,0.00016712,2]
[335311184,1724099448244,-500.0,0.00016712,2]
[335311185,1724099448253,-500.0,0.00016712,2]
[335311186,1724099448263,-1054.54,0.00016712,2]
[335311187,1724099448273,-500.0,0.00016712,2]
[335311188,1724099448283,-500.0,0.00016712,2]
[335311189,1724099448295,-500.0,0.00016712,2]
[335311190,1724099448305,-500.0,0.00016712,2]
[335311191,1724099448315,-500.0,0.00016712,2]
[335311192,1724099448326,-500.0,0.00016712,2]
[335311193,1724099448336,-500.0,0.00016712,2]
[335311194,1724099448345,-500.0,0.00016712,2]
[335311195,1724099448356,-500.0,0.00016712,2]
[335311196,1724099448366,-500.0,0.00016712,2]
[335311197,1724099448376,-500.0,0.00016712,2]
[335311198,1724099448386,-500.0,0.00016712,2]
[335311199,1724099448396,-2953.47,0.00016712,2]
[335311200,1724099448406,-500.0,0.00016712,2]
[335311201,1724099448416,-500.0,0.00016712,2]
[335311202,1724099448425,-500.0,0.00016712,2]
[335311203,1724099448434,-500.0,0.00016712,2]
[335311204,1724099448443,-500.0,0.00016712,2]
[335311205,1724099448453,-500.0,0.00016712,2]
[335311206,1724099448462,-638.94696661,0.00016712,2]
[335311207,1724099448471,-500.0,0.00016712,2]
[335311208,1724099448481,-500.0,0.00016712,2]
[335311209,1724099448492,-500.0,0.00016712,2]
[335311210,1724099448502,-151.0,0.00016712,2]
[335311211,1724099448512,-500.0,0.00016712,2]
[335311212,1724099448522,-500.0,0.00016712,2]
[335311213,1724099448531,-500.0,0.00016712,2]
[335311214,1724099448542,-500.0,0.00016712,2]
[335311215,1724099448551,-500.0,0.00016712,2]
[335311216,1724099448562,-500.0,0.00016712,2]
[335311217,1724099448571,-162.736936,0.00016712,2]
[335311218,1724099448580,-523.49,0.00016712,2]
[335311219,1724099448592,-162.736936,0.00016712,2]
[335311220,1724099448602,-500.0,0.00016712,2]
[335311221,1724099448611,-151.0,0.00016712,2]
[335311222,1724099448620,-1350.92,0.00016712,2]
[335311223,1724099448630,-151.0,0.00016712,2]
[335311224,1724099448640,-204.81684146,0.00016712,2]
[335311225,1724099448650,-500.0,0.00016712,2]
[335311226,1724099448660,-500.0,0.00016712,2]
[335311227,1724099448670,-500.0,0.00016712,2]
[335311228,1724099448679,-500.0,0.00016712,2]
[335311229,1724099448690,-500.0,0.00016712,2]
[335311230,1724099448699,-500.0,0.00016712,2]
[335311231,1724099448709,-500.0,0.00016712,2]
[335311232,1724099448720,-500.0,0.00016712,2]
[335311233,1724099448729,-500.0,0.00016712,2]
[335311234,1724099448739,-500.0,0.00016712,2]
[335311235,1724099448748,-500.0,0.00016712,2]
[335311236,1724099448757,-500.0,0.00016712,2]
[335311237,1724099448766,-500.0,0.00016712,2]
[335311238,1724099448776,-500.0,0.00016712,2]
[335311239,1724099448785,-500.0,0.00016712,2]
[335311240,1724099448795,-151.0,0.00016712,2]
[335311241,1724099448804,-500.0,0.00016712,2]
[335311242,1724099448813,-137.42460434,0.00016712,2]
[335311243,1724099449097,-500.0,0.00016438,2]
[335311244,1724099449107,-294.75,0.00016438,2]
[335311245,1724099449188,-824.04648635,0.0001589,2]
[335311246,1724099449198,-205.25,0.00016438,2]
[335311247,1724099449208,-500.0,0.00016438,2]
[335311248,1724099449218,-362.57539566,0.00016712,2]
[335311249,1724099449228,-500.0,0.00016712,2]
[335311250,1724099449238,-500.0,0.00016712,2]
[335311251,1724099449247,-500.0,0.00016712,2]
[335311252,1724099449257,-500.0,0.00016712,2]
[335311253,1724099449269,-500.0,0.00016712,2]
[335311254,1724099449279,-511.68736097,0.00016712,2]
[335311255,1724099449290,-500.0,0.00016712,2]
[335311256,1724099449304,-500.0,0.00016712,2]
[335311257,1724099449314,-531.58,0.00016712,2]
[335311258,1724099449323,-528.0,0.00016712,2]
[335311259,1724099449333,-500.0,0.00016712,2]
[335311260,1724099449342,-500.0,0.00016712,2]
[335311261,1724099449352,-500.0,0.00016712,2]
[335311262,1724099449362,-500.0,0.00016712,2]
[335311263,1724099449371,-500.0,0.00016712,2]
[335311264,1724099449380,-500.0,0.00016712,2]
[335311265,1724099449389,-500.0,0.00016712,2]
[335311266,1724099449399,-177.300244,0.00016712,2]
[335311267,1724099449409,-618.94408533,0.00016712,2]
[335311268,1724099449420,-500.0,0.00016712,2]
[335311269,1724099449431,-177.300244,0.00016712,2]
[335311270,1724099449442,-500.0,0.00016712,2]
[335311271,1724099449451,-500.0,0.00016712,2]
[335311272,1724099449462,-500.0,0.00016712,2]
[335311273,1724099449473,-500.0,0.00016712,2]
[335311274,1724099449483,-500.0,0.00016712,2]
[335311275,1724099449493,-521.9,0.00016712,2]
[335311276,1724099449504,-500.0,0.00016712,2]
[335311277,1724099449514,-500.0,0.00016712,2]
[335311278,1724099449526,-500.0,0.00016712,2]
[335311279,1724099449537,-269.85,0.00016712,2]
[335311280,1724099449549,-500.0,0.00016712,2]
[335311281,1724099449559,-500.0,0.00016712,2]
[335311282,1724099449568,-500.0,0.00016712,2]
[335311283,1724099449578,-500.0,0.00016712,2]
[335311284,1724099449588,-500.0,0.00016712,2]
[335311285,1724099449597,-500.0,0.00016712,2]
[335311286,1724099449607,-500.0,0.00016712,2]
[335311287,1724099449618,-500.0,0.00016712,2]
[335311288,1724099449629,-151.0,0.00016712,2]
[335311289,1724099449639,-500.0,0.00016712,2]
[335311290,1724099449650,-500.0,0.00016712,2]
[335311291,1724099449660,-500.0,0.00016712,2]
[335311292,1724099449670,-500.0,0.00016712,2]
[335311293,1724099449681,-891.6,0.00016712,2]
[335311294,1724099449692,-500.0,0.00016712,2]
[335311295,1724099449702,-500.0,0.00016712,2]
[335311296,1724099449712,-530.24794796,0.00016712,2]
[335311297,1724099449723,-151.0,0.00016712,2]
[335311298,1724099449733,-500.0,0.00016712,2]
[335311299,1724099449743,-500.0,0.00016712,2]
[335311300,1724099449755,-151.0,0.00016712,2]
[335311301,1724099449765,-500.0,0.00016712,2]
[335311302,1724099449775,-500.0,0.00016712,2]
[335311303,1724099449786,-151.0,0.00016712,2]
[335311304,1724099449796,-500.0,0.00016712,2]
[335311305,1724099449807,-500.0,0.00016712,2]
[335311306,1724099449818,-500.0,0.00016712,2]
[335311307,1724099449829,-500.0,0.00016712,2]
[335311308,1724099449840,-500.0,0.00016712,2]
[335311309,1724099449851,-500.0,0.00016712,2]
[335311310,1724099449862,-500.0,0.00016712,2]
[335311311,1724099449872,-562.42,0.00016712,2]
[335311312,1724099449884,-508.61,0.00016712,2]
[335311313,1724099449894,-500.0,0.00016712,2]
[335311314,1724099449904,-500.0,0.00016712,2]
[335311315,1724099449917,-500.0,0.00016712,2]
[335311316,1724099449927,-500.0,0.00016712,2]
[335311317,1724099449936,-500.0,0.00016712,2]
[335311318,1724099449946,-500.0,0.00016712,2]
[335311319,1724099449955,-235.801382,0.00016712,2]
[335311320,1724099449965,-879.79,0.00016712,2]
[335311321,1724099449974,-500.0,0.00016712,2]
[335311322,1724099449984,-235.801382,0.00016712,2]
[335311323,1724099449994,-500.0,0.00016712,2]
[335311324,1724099450004,-500.0,0.00016712,2]
[335311325,1724099450013,-500.0,0.00016712,2]
[335311326,1724099450023,-151.0,0.00016712,2]
[335311327,1724099450032,-500.0,0.00016712,2]
[335311328,1724099450042,-500.0,0.00016712,2]
[335311329,1724099450051,-500.0,0.00016712,2]
[335311330,1724099450062,-509.47022206,0.00016712,2]
[335311331,1724099450071,-500.0,0.00016712,2]
[335311332,1724099450081,-500.0,0.00016712,2]
[335311333,1724099450090,-500.0,0.00016712,2]
[335311334,1724099450099,-500.0,0.00016712,2]
[335311335,1724099450109,-500.0,0.00016712,2]
[335311336,1724099450118,-273.8662433,0.00016712,2]
[335311337,1724099450127,-500.0,0.00016712,2]
[335311338,1724099450137,-500.0,0.00016712,2]
[335311339,1724099450146,-500.0,0.00016712,2]
[335311340,1724099450155,-500.0,0.00016712,2]
[335311341,1724099450164,-500.0,0.00016712,2]
[335311342,1724099450174,-500.0,0.00016712,2]
[335311343,1724099450183,-1415.84,0.00016712,2]
[335311344,1724099450192,-151.0,0.00016712,2]
[335311345,1724099450202,-500.0,0.00016712,2]
[335311346,1724099450211,-500.0,0.00016712,2]
[335311347,1724099450220,-500.0,0.00016712,2]
[335311348,1724099450232,-500.0,0.00016712,2]
[335311349,1724099450242,-500.0,0.00016712,2]
[335311350,1724099450251,-500.0,0.00016712,2]
[335311351,1724099450261,-500.0,0.00016712,2]
[335311352,1724099450270,-500.0,0.00016712,2]
[335311353,1724099450279,-500.0,0.00016712,2]
[335311354,1724099450289,-151.0,0.00016712,2]
[335311355,1724099450299,-500.0,0.00016712,2]
[335311356,1724099450309,-375.11585732,0.00016712,2]
[335311357,1724099450318,-500.0,0.00016712,2]
[335311358,1724099450327,-500.0,0.00016712,2]
[335311359,1724099450337,-500.0,0.00016712,2]
[335311360,1724099450347,-1574.47,0.00016712,2]
[335311361,1724099450356,-500.0,0.00016712,2]
[335311362,1724099450366,-28.81061338,0.00016712,2]
[335311368,1724100121513,342.36840751,9.999e-05,2]
[335311369,1724100152614,1606.82330466,9.999e-05,2]
[335311370,1724100216576,516.17470653,9.999e-05,2]
[335311371,1724100227543,190.48870702,9.999e-05,2]
[335311433,1724100631986,-154.79103211,0.00011046,2]
[335311435,1724100631995,-1195.20895689,0.00012356,2]
[335311538,1724100638059,-300.0,0.00012405,2]
[335311540,1724100638068,-23086.0181327,0.00012406,2]
[335311542,1724100638079,-493.30764145,0.00012971,2]
[335311544,1724100638090,-301.32985509,0.00012999,2]
[335311546,1724100638100,-221.56604958,0.00013025,2]
[335311549,1724100638110,-209.850896,0.000131,2]
[335311551,1724100638120,-650.0,0.00013599,2]
[335311553,1724100638131,-201.57395078,0.00013599,2]
[335311555,1724100638141,-420.0,0.00013646,2]
[335311557,1724100638150,-194.82337617,0.00013699,2]
[335311559,1724100638159,-3719.64070903,0.00014147,2]
[335311561,1724100638168,-615.809761,0.00014247,2]
[335311563,1724100638177,-167.709916,0.00014247,2]
[335311565,1724100638186,-157.92561724,0.00014519,2]
[335311567,1724100638195,-500.0,0.00014999,2]
[335311569,1724100638205,-178.10919839,0.00014999,2]
[335311571,1724100638215,-500.0,0.00014999,2]
[335311573,1724100638224,-497.24476056,0.00014999,2]
[335311575,1724100638233,-953.38755458,0.00015,2]
[335311577,1724100638243,-5244.78933856,0.00015,2]
[335311579,1724100638254,-574.18002641,0.00015,2]
[335311582,1724100638265,-12407.88606084,0.00015,2]
[335311584,1724100638283,-49724.03452164,0.00015,2]
[335311650,1724100640390,-209.850896,0.00012766,2]
[335311652,1724100640400,-160.41055449,0.00012989,2]
[335311654,1724100640411,-98733.07941752,0.00015,2]
[335311656,1724100640421,-248.0,0.00015011,2]
[335311658,1724100640430,-153.0,0.00015469,2]
[335311660,1724100640440,-153.0,0.00015469,2]
[335311662,1724100640449,-153.0,0.00015469,2]
[335311665,1724100640459,-153.0,0.00015469,2]
[335311667,1724100640470,-153.0,0.00015469,2]
[335311669,1724100640482,-153.0,0.00015469,2]
[335311671,1724100640491,-153.0,0.00015469,2]
[335311673,1724100640503,-153.0,0.00015469,2]
[335311675,1724100640512,-153.0,0.00015469,2]
[335311678,1724100640523,-153.0,0.00015469,2]
[335311680,1724100640533,-153.0,0.0001547,2]
[335311682,1724100640544,-153.0,0.0001547,2]
[335311684,1724100640555,-153.0,0.0001547,2]
[335311686,1724100640565,-153.0,0.0001547,2]
[335311688,1724100640575,-153.0,0.0001547,2]
[335311691,1724100640587,-153.0,0.00015477,2]
[335311693,1724100640598,-153.0,0.00015477,2]
[335311695,1724100640610,-153.0,0.00015477,2]
[335311697,1724100640623,-153.0,0.00015477,2]
[335311699,1724100640634,-153.0,0.00015477,2]
[335311701,1724100640645,-153.0,0.00015477,2]
[335311704,1724100640655,-153.0,0.00015478,2]
[335311706,1724100640664,-153.0,0.00015478,2]
[335311707,1724100640674,-358.190943,0.0001589,2]
[335311709,1724100640684,-200.0,0.00015973,2]
[335311711,1724100640693,-200.0,0.00015973,2]
[335311713,1724100640705,-35391.15544384,0.0001599,2]
[335311993,1724100643427,-1699.97832797,0.0001599,2]
[335312254,1724100646193,-200.0,0.00015973,2]
[335312255,1724100646204,-1802.74062318,0.0001599,2]
[335312311,1724101377593,385.58223389,0.0001,2]
[335312312,1724101387105,2545.96094844,9.999e-05,2]
[335312313,1724101449915,168.12793243,9.999e-05,2]
[335312314,1724101627137,-600.88577429,0.00011999,2]
[335312315,1724101627161,-176.39332573,0.00011999,2]
[335312316,1724101627184,-222.44078643,0.00011999,2]
[335312317,1724101627207,-215.09339058,0.00011999,2]
[335312318,1724101627231,-300.0,0.00012118,2]
[335312319,1724101627259,-300.0,0.00012118,2]
[335312320,1724101627282,-493.30764145,0.00012999,2]
[335312321,1724101627305,-694.11289231,0.00013025,2]
[335312322,1724101627327,-154.7755785,0.00013051,2]
[335312323,1724101627349,-154.7755785,0.00013051,2]
[335312324,1724101627372,-395.40691127,0.00013301,2]
[335312325,1724101628108,-24.59308873,0.00013301,2]
[335312326,1724101628130,-420.0,0.0001333,2]
[335312327,1724101628154,-362.27815603,0.00013497,2]
[335312370,1724101832162,-521.29251267,0.00011712,2]
[335312372,1724101832175,-493.30764145,0.0001295,2]
[335312374,1724101832185,-1944.00875508,0.00012989,2]
[335312378,1724101832219,-1148.63403219,0.00012989,2]
[335312380,1724101832229,-281.09871545,0.00013051,2]
[335312382,1724101832239,-223.44653164,0.00013051,2]
[335312384,1724101832249,-154.86851392,0.00013051,2]
[335312386,1724101832260,-309.18063735,0.00013051,2]
[335312388,1724101832270,-190.07446844,0.00013051,2]
[335312390,1724101832279,-300.0,0.00013332,2]
[335312392,1724101832290,-300.0,0.00013332,2]
[335312393,1724101832301,-522.69242654,0.00013333,2]
[335312394,1724101832311,-448.97670212,0.00013333,2]
[335312395,1724101832322,-568.99410922,0.00013333,2]
[335312396,1724101832333,-154.88372907,0.00013477,2]
[335312397,1724101832343,-255.24633633,0.00013496,2]
[335312398,1724101832353,-174.83511409,0.00013597,2]
[335312399,1724101832363,-342.65845262,0.00013597,2]
[335312400,1724101832374,-194.82337617,0.00013699,2]
[335312401,1724101832385,-3176.03883021,0.00013704,2]
[335312432,1724101838183,-251.95044279,0.00013704,2]
[335312434,1724101838194,-585.019272,0.00014247,2]
[335312436,1724101838206,-178.916537,0.00014247,2]
[335312438,1724101838217,-420.0,0.00014665,2]
[335312440,1724101838228,-222.69133734,0.000149,2]
[335312443,1724101838238,-222.69133733,0.000149,2]
[335312445,1724101838249,-574.18002641,0.00015,2]
[335312447,1724101838260,-153.0,0.0001536,2]
[335312449,1724101838270,-153.0,0.0001536,2]
[335312451,1724101838279,-153.0,0.0001536,2]
[335312453,1724101838288,-153.0,0.0001536,2]
[335312455,1724101838299,-153.0,0.0001536,2]
[335312457,1724101838310,-153.0,0.0001536,2]
[335312460,1724101838322,-153.0,0.0001536,2]
[335312462,1724101838334,-153.0,0.0001536,2]
[335312464,1724101838344,-153.0,0.0001536,2]
[335312466,1724101838354,-153.0,0.0001536,2]
[335312469,1724101838367,-153.0,0.0001536,2]
[335312471,1724101838378,-153.0,0.00015361,2]
[335312473,1724101838389,-153.0,0.00015361,2]
[335312475,1724101838398,-153.0,0.00015361,2]
[335312477,1724101838408,-153.0,0.00015361,2]
[335312479,1724101838417,-153.0,0.00015368,2]
[335312481,1724101838426,-3254.68562041,0.00015688,2]
[335312483,1724101838436,-150.0,0.00015855,2]
[335312485,1724101838446,-5307.38883918,0.00015885,2]
[335312487,1724101838455,-378.841036,0.0001589,2]
[335312489,1724101838466,-2000.0,0.000159,2]
[335312492,1724101838476,-153.0,0.00015972,2]
[335312494,1724101838486,-153.0,0.00015972,2]
[335312496,1724101838497,-153.0,0.00015972,2]
[335312498,1724101838508,-153.0,0.00015972,2]
[335312500,1724101838521,-153.0,0.00015972,2]
[335312503,1724101838532,-153.0,0.00015972,2]
[335312505,1724101838541,-200.0,0.00015973,2]
[335312507,1724101838551,-200.0,0.00015973,2]
[335312509,1724101838560,-500.0,0.00015989,2]
[335312511,1724101838571,-207.99220217,0.00015989,2]
[335312513,1724101838582,-500.0,0.00015989,2]
[335312515,1724101838594,-154.69833824,0.0001599,2]
[335312518,1724101838606,-119951.254635,0.0001599,2]
[335312520,1724101838620,-100000.0,0.00016,2]
[335312522,1724101838630,-465.05526892,0.00016078,2]
[335312524,1724101838640,-243.0092853,0.0001611,2]
[335312526,1724101838651,-408.9517048,0.0001611,2]
[335312529,1724101838661,-676.0846291,0.0001611,2]
[335312531,1724101838672,-1414.0,0.00016137,2]
[335312533,1724101838684,-7726.0,0.00016137,2]
[335312535,1724101838696,-7731.221,0.00016137,2]
[335312538,1724101838707,-336.82525701,0.00016167,2]
[335312540,1724101838718,-336.82525701,0.00016181,2]
[335312542,1724101838730,-2284.53873993,0.00016338,2]
[335312544,1724101838742,-17120.69926546,0.00016338,2]
[335312546,1724101838753,-71278.30631738,0.00016428,2]
[335312589,1724101840659,-921.340015,0.00016137,5]
[335312591,1724101840672,-945.0099999,0.00016137,5]
[335312593,1724101840683,-1380.68828595,0.00016137,5]
[335312614,1724101840870,-25224.91924832,0.00016137,5]
[335312617,1724101840882,-168624.20295262,0.00016428,2]
[335312619,1724101840894,-150.0,0.00016431,2]
[335312621,1724101840905,-150.0,0.00016431,2]
[335312623,1724101840915,-150.306,0.00016431,2]
[335312625,1724101840926,-213.019,0.00016431,2]
[335312627,1724101840937,-150.0,0.00016431,2]
[335312630,1724101840947,-150.4,0.00016431,2]
[335312632,1724101840959,-150.0,0.00016431,2]
[335312634,1724101840974,-521.0,0.00016431,2]
[335312636,1724101840985,-507.06149287,0.00016438,2]
[335312639,1724101840997,-151.0,0.00016438,2]
[335312641,1724101841007,-500.0,0.00016438,2]
[335312643,1724101841018,-500.0,0.00016438,2]
[335312645,1724101841029,-515.56278426,0.00016438,2]
[335312647,1724101841041,-500.0,0.00016438,2]
[335312649,1724101841052,-500.0,0.00016438,2]
[335312651,1724101841061,-500.0,0.00016438,2]
[335312653,1724101841072,-500.0,0.00016438,2]
[335312655,1724101841082,-500.0,0.00016438,2]
[335312657,1724101841092,-517.91900299,0.00016438,2]
[335312659,1724101841103,-500.0,0.00016438,2]
[335312662,1724101841114,-500.0,0.00016438,2]
[335312664,1724101841124,-500.0,0.00016438,2]
[335312666,1724101841136,-500.0,0.00016438,2]
[335312668,1724101841146,-500.0,0.00016438,2]
[335312670,1724101841157,-500.0,0.00016438,2]
[335312672,1724101841167,-500.0,0.00016438,2]
[335312675,1724101841177,-500.0,0.00016438,2]
[335312677,1724101841187,-500.0,0.00016438,2]
[335312679,1724101841198,-500.0,0.00016438,2]
[335312681,1724101841207,-500.0,0.00016438,2]
[335312683,1724101841216,-617.81989479,0.00016438,2]
[335312685,1724101841226,-500.0,0.00016438,2]
[335312687,1724101841235,-500.0,0.00016438,2]
[335312689,1724101841244,-500.0,0.00016438,2]
[335312691,1724101841254,-500.0,0.00016438,2]
[335312693,1724101841264,-854.45,0.00016438,2]
[335312695,1724101841273,-500.0,0.00016438,2]
[335312697,1724101841283,-500.0,0.00016438,2]
[335312699,1724101841292,-500.0,0.00016438,2]
[335312701,1724101841301,-202.73368526,0.00016438,2]
[335312703,1724101841311,-500.0,0.00016438,2]
[335312705,1724101841320,-500.0,0.00016438,2]
[335312707,1724101841329,-538.99,0.00016438,2]
[335312709,1724101841340,-500.0,0.00016438,2]
[335312711,1724101841350,-500.0,0.00016438,2]
[335312713,1724101841360,-500.0,0.00016438,2]
[335312715,1724101841371,-500.0,0.00016438,2]
[335312717,1724101841382,-500.0,0.00016438,2]
[335312719,1724101841392,-506.66604033,0.00016438,2]
[335312721,1724101841403,-500.0,0.00016438,2]
[335312724,1724101841413,-500.0,0.00016438,2]
[335312726,1724101841423,-500.0,0.00016438,2]
[335312728,1724101841434,-500.0,0.00016438,2]
[335312730,1724101841445,-500.0,0.00016438,2]
[335312732,1724101841456,-500.0,0.00016438,2]
[335312734,1724101841466,-500.0,0.00016438,2]
[335312736,1724101841477,-500.0,0.00016438,2]
[335312739,1724101841488,-412.2194398,0.00016438,2]
[335312741,1724101841498,-500.0,0.00016438,2]
[335312743,1724101841508,-500.0,0.00016438,2]
[335312745,1724101841518,-500.0,0.00016438,2]
[335312747,1724101841527,-514.38428904,0.00016438,2]
[335312749,1724101841537,-500.0,0.00016438,2]
[335312751,1724101841547,-500.0,0.00016438,2]
[335312753,1724101841557,-500.0,0.00016438,2]
[335312755,1724101841568,-500.0,0.00016438,2]
[335312756,1724101841577,-500.0,0.00016438,2]
[335312757,1724101841586,-500.0,0.00016438,2]
[335312758,1724101841596,-500.0,0.00016438,2]
[335312759,1724101841605,-500.0,0.00016438,2]
[335312760,1724101841614,-500.0,0.00016438,2]
[335312769,1724101841794,-500.0,0.00016438,2]
[335312771,1724101841804,-500.0,0.00016438,2]
[335312773,1724101841814,-500.0,0.00016438,2]
[335312775,1724101841823,-500.0,0.00016438,2]
[335312777,1724101841832,-500.0,0.00016438,2]
[335312779,1724101841842,-500.0,0.00016438,2]
[335312781,1724101841851,-500.0,0.00016438,2]
[335312782,1724101841860,-411.61122609,0.00016438,2]
[335312785,1724101841870,-510.98672459,0.00016438,2]
[335312787,1724101841879,-500.0,0.00016438,2]
[335312788,1724101841888,-500.0,0.00016438,2]
[335312791,1724101841899,-500.0,0.00016438,2]
[335312793,1724101841908,-500.0,0.00016438,2]
[335312795,1724101841918,-519.29215306,0.00016438,2]
[335312797,1724101841927,-511.12529122,0.00016438,2]
[335312798,1724101841936,-259.98056869,0.00016438,2]
[335312800,1724101841946,-170.55211134,0.00016438,2]
[335312802,1724101841956,-509.04117585,0.00016438,2]
[335312804,1724101841966,-500.0,0.00016438,2]
[335312806,1724101841979,-504.88832304,0.00016438,2]
[335312809,1724101841989,-500.0,0.00016438,2]
[335312811,1724101841998,-500.0,0.00016438,2]
[335312813,1724101842008,-500.0,0.00016438,2]
[335312814,1724101842019,-505.55650891,0.00016438,2]
[335312817,1724101842029,-500.0,0.00016438,2]
[335312819,1724101842038,-500.0,0.00016438,2]
[335312820,1724101842048,-500.0,0.00016438,2]
[335312823,1724101842057,-151.0,0.00016438,2]
[335312824,1724101842066,-500.0,0.00016438,2]
[335312827,1724101842076,-431.66523397,0.00016438,2]
[335312829,1724101842085,-500.0,0.00016438,2]
[335312830,1724101842094,-500.0,0.00016438,2]
[335312833,1724101842104,-500.0,0.00016438,2]
[335312835,1724101842113,-500.0,0.00016438,2]
[335312836,1724101842122,-500.0,0.00016438,2]
[335312839,1724101842132,-500.0,0.00016438,2]
[335312841,1724101842141,-500.0,0.00016438,2]
[335312843,1724101842150,-500.0,0.00016438,2]
[335312845,1724101842160,-500.0,0.00016438,2]
[335312847,1724101842169,-500.0,0.00016438,2]
[335312849,1724101842178,-500.0,0.00016438,2]
[335312850,1724101842187,-500.0,0.00016438,2]
[335312853,1724101842196,-500.0,0.00016438,2]
[335312854,1724101842206,-500.0,0.00016438,2]
[335312857,1724101842215,-500.0,0.00016438,2]
[335312859,1724101842225,-500.0,0.00016438,2]
[335312861,1724101842234,-500.0,0.00016438,2]
[335312863,1724101842243,-500.0,0.00016438,2]
[335312865,1724101842252,-500.0,0.00016438,2]
[335312866,1724101842262,-500.0,0.00016438,2]
[335312868,1724101842273,-500.0,0.00016438,2]
[335312871,1724101842283,-518.21978141,0.00016438,2]
[335312872,1724101842291,-500.0,0.00016438,2]
[335312874,1724101842301,-500.0,0.00016438,2]
[335312877,1724101842311,-500.0,0.00016438,2]
[335312879,1724101842321,-528.83306121,0.00016438,2]
[335312881,1724101842330,-500.0,0.00016438,2]
[335312882,1724101842339,-500.0,0.00016438,2]
[335312885,1724101842349,-500.0,0.00016438,2]
[335312887,1724101842358,-500.0,0.00016438,2]
[335312888,1724101842367,-504.13587495,0.00016438,2]
[335312890,1724101842377,-155.9040371,0.00016438,2]
[335312892,1724101842386,-396.09400744,0.00016438,2]
[335312894,1724101842395,-500.0,0.00016438,2]
[335312896,1724101842404,-500.0,0.00016438,2]
[335312899,1724101842414,-500.0,0.00016438,2]
[335312900,1724101842423,-500.0,0.00016438,2]
[335312902,1724101842432,-151.0,0.00016438,2]
[335312904,1724101842441,-151.0,0.00016438,2]